bitfinex/quotes_SOLUSD_20251013
["timestamp","ask_amount","ask_price","bid_price","bid_amount"]
[1760320677948,5.00744443,199.71,199.65,10.87647521]
[1760320678426,5.00744443,199.71,199.64,8.61725782]
[1760320678427,5.00744443,199.71,199.66,8.61725782]
[1760320678626,5.71744443,199.71,199.66,8.61725782]
[1760320678827,0.71,199.7,199.66,8.61725782]
[1760320679231,0.71,199.7,199.59,12.52535857]
[1760320679232,0.71,199.69,199.59,10.87647521]
[1760320679544,0.71,199.69,199.64,10.87647521]
[1760320679726,0.71,199.68,199.63,8.61725782]
[1760320679924,0.71,199.67,199.58,20.8]
[1760320680122,0.71,199.67,199.6,8.61725782]
[1760320680426,0.71,199.67,199.58,10.87647521]
[1760320680627,0.71,199.67,199.6,8.61725782]
[1760320680943,5.00851447,199.66,199.61,8.61725782]
[1760320681162,5.00851447,199.66,199.58,15.88694333]
[1760320681163,0.71,199.67,199.62,8.61725782]
[1760320681324,0.10172959,199.63,199.62,8.61725782]
[1760320681640,0.10172959,199.63,199.61,8.61725782]
[1760320681839,0.10172959,199.63,199.6,10.87647521]
[1760320682043,0.10172959,199.63,199.61,8.61725782]
[1760320682336,0.10172959,199.63,199.6,8.61725782]
[1760320683048,0.10172959,199.63,199.61,8.61725782]
[1760320683739,0.10172959,199.63,199.6,8.61725782]
[1760320684122,0.10172959,199.63,199.59,0.67]
[1760320684319,0.10172959,199.63,199.57,11.54647521]
[1760320684526,5.11100275,199.63,199.57,11.54647521]
[1760320684743,0.10172959,199.63,199.6,8.61725782]
[1760320684947,0.10172959,199.63,199.57,16.55721112]
[1760320684948,0.71,199.62,199.55,0.50112753]
[1760320685128,0.10172959,199.63,199.6,8.61725782]
[1760320685332,0.10172959,199.63,199.59,8.61725782]
[1760320685538,0.10172959,199.63,199.61,19.49373303]
[1760320685845,0.10172959,199.63,199.62,8.61725782]
[1760320686056,0.10172959,199.63,199.62,20.16373303]
[1760320686421,0.10172959,199.63,199.62,16.55599329]
[1760320686622,0.10172959,199.63,199.62,10.87647521]
[1760320686938,0.10172959,199.63,199.62,25.17325111]
[1760320687525,0.10172959,199.63,199.62,19.49373303]
[1760320687720,0.10172959,199.63,199.62,24.50325111]
[1760320688128,0.10172959,199.63,199.62,8.61725782]
[1760320688339,0.10172959,199.63,199.61,8.61725782]
[1760320688546,0.10172959,199.63,199.61,10.87647521]
[1760320688725,0.10172959,199.63,199.62,19.49373303]
[1760320689124,0.10172959,199.63,199.61,8.61725782]
[1760320689345,0.10172959,199.63,199.61,10.87647521]
[1760320689547,0.10172959,199.63,199.62,20.16373303]
[1760320690148,0.10172959,199.63,199.62,24.50325111]
[1760320690443,0.10172959,199.63,199.62,25.17325111]
[1760320690649,0.10172959,199.63,199.62,25.67420291]
[1760320691156,1e-08,199.64,199.63,10.87647521]
[1760320691328,1e-08,199.64,199.63,20.16373303]
[1760320692227,1e-08,199.64,199.63,13.62652496]
[1760320692526,0.71000001,199.64,199.58,8.61725782]
[1760320692727,8.61725783,199.64,199.54,12.52854911]
[1760320692936,8.61725782,199.61,199.55,5.01127536]
[1760320693128,8.61725782,199.57,199.49,13.63004041]
[1760320693450,9.32725782,199.57,199.5,8.61725782]
[1760320693669,0.71,199.57,199.51,10.87647521]
[1760320693842,9.32725782,199.57,199.51,10.87647521]
[1760320694048,9.32725782,199.57,199.49,5.01278259]
[1760320694253,9.32725782,199.57,199.5,8.61725782]
[1760320694631,0.71,199.56,199.49,17.54473907]
[1760320694831,0.71,199.56,199.5,8.61725782]
[1760320695051,9.32725782,199.56,199.5,10.87647521]
[1760320695357,9.32725782,199.55,199.49,17.54473907]
[1760320695854,8.61725782,199.53,199.47,5.01309222]
[1760320696177,0.71,199.55,199.51,5.01228008]
[1760320696532,0.71,199.54,199.51,5.01228008]
[1760320697254,25.81054654,199.58,199.49,10.87647521]
[1760320697431,9.32725782,199.57,199.48,10.87647521]
[1760320697757,0.71,199.57,199.49,8.61725782]
[1760320697937,0.71,199.57,199.51,8.61725782]
[1760320698138,9.32725782,199.6,199.53,10.87647521]
[1760320698339,0.71,199.6,199.54,5.01152651]
[1760320698739,0.71,199.6,199.54,13.62878433]
[1760320698942,9.32725782,199.6,199.54,5.01152651]
[1760320699451,9.32725782,199.59,199.54,17.54034278]
[1760320699757,8.25168125,199.59,199.54,17.54034278]
[1760320700053,8.61725782,199.59,199.54,17.54034278]
[1760320700256,28.42769755,199.63,199.54,17.54034278]
[1760320700257,2.61842235,199.63,199.55,11.54647521]
[1760320700550,1e-08,199.64,199.56,8.61725782]
[1760320700757,8.61725782,199.6,199.54,17.54034278]
[1760320700960,8.61725782,199.57,199.54,5.01152651]
[1760320701261,8.61725782,199.55,199.49,5.01278259]
[1760320701466,8.61725782,199.52,199.46,5.01353654]
[1760320701670,8.61725782,199.51,199.46,5.01353654]
[1760320701959,9.32725782,199.56,199.48,8.61725782]
[1760320702333,8.61725782,199.54,199.48,17.5456186]
[1760320702552,8.61725782,199.53,199.48,17.5456186]
[1760320702733,0.71,199.55,199.48,17.5456186]
[1760320702734,8.61725782,199.54,199.48,17.5456186]
[1760320702934,0.71,199.55,199.48,17.5456186]
[1760320703136,0.09990121,199.57,199.51,19.49373303]
[1760320703350,0.09990121,199.57,199.5,11.37772834]
[1760320703543,0.09990121,199.57,199.52,8.61725782]
[1760320703753,0.09990121,199.57,199.53,8.61725782]
[1760320703944,0.09990121,199.57,199.55,8.61725782]
[1760320704142,0.09990121,199.57,199.54,19.49373303]
[1760320704348,0.09990121,199.57,199.55,5.01127536]
[1760320705738,0.09990121,199.57,199.55,13.62853318]
[1760320706764,0.09990121,199.57,199.56,0.68]
[1760320706943,0.09990121,199.57,199.56,9.29725782]
[1760320707369,0.09990121,199.57,199.56,0.68]
[1760320708170,0.09990121,199.57,199.56,14.30828207]
[1760320708370,0.09990121,199.57,199.56,5.69102425]
[1760320708543,0.09990121,199.57,199.56,25.18475728]
[1760320711662,0.09990121,199.57,199.56,16.56749946]
[1760320712046,0.09990121,199.57,199.56,5.69102425]
[1760320712246,0.09990121,199.57,199.56,5.01102425]
[1760320713061,0.09990121,199.57,199.56,14.30828207]
[1760320713279,0.09990121,199.57,199.56,228.80828207]
[1760320713463,0.09990121,199.57,199.56,148.40828207]
[1760320713662,0.09990121,199.57,199.56,147.72828207]
[1760320715081,0.09990121,199.57,199.56,139.11102425]
[1760320715650,0.09990121,199.57,199.56,159.28475728]
[1760320716186,0.09990121,199.57,199.56,25.18475728]
[1760320716360,0.09990121,199.57,199.56,25.6858597]
[1760320716976,0.09990121,199.57,199.56,240.1858597]
[1760320717157,0.09990121,199.57,199.56,239.68475728]
[1760320717678,0.09990121,199.57,199.56,25.18475728]
[1760320717976,0.09990121,199.57,199.56,24.50475728]
[1760320718176,0.09990121,199.57,199.56,15.88749946]
[1760320718372,0.09990121,199.57,199.56,5.01102425]
[1760320719364,0.09990121,199.57,199.51,17.5426086]
[1760320719577,0.09990121,199.57,199.52,19.49373303]
[1760320719769,0.09990121,199.57,199.53,8.61725782]
[1760320719960,0.09990121,199.57,199.54,8.61725782]
[1760320720156,0.09990121,199.57,199.54,10.87647521]
[1760320720480,0.09990121,199.57,199.55,5.01127536]
[1760320721280,0.09283986,199.56,199.51,12.53045312]
[1760320721466,0.09283986,199.56,199.41,34.90275997]
[1760320721467,9.33725782,199.55,199.47,13.63054302]
[1760320721667,0.72,199.54,199.47,13.63054302]
[1760320721872,9.33725782,199.53,199.48,12.53258472]
[1760320722061,0.72,199.52,199.48,12.53258472]
[1760320722262,8.61725782,199.54,199.48,12.53258472]
[1760320722578,0.09283986,199.56,199.51,8.61725782]
[1760320722753,0.09283986,199.56,199.53,8.61725782]
[1760320722957,0.72,199.55,199.51,10.87647521]
[1760320723377,0.72,199.54,199.51,10.87647521]
[1760320723881,9.33725782,199.53,199.48,17.5456186]
[1760320724060,0.69,199.52,199.48,17.5456186]
[1760320724377,8.61725782,199.53,199.48,17.5456186]
[1760320724378,0.69,199.51,199.48,17.5456186]
[1760320724562,0.69,199.51,199.46,13.63079436]
[1760320724767,0.69,199.51,199.47,10.87647521]
[1760320724977,0.69,199.51,199.46,5.72353654]
[1760320725176,0.69,199.5,199.46,5.01353654]
[1760320725865,0.69,199.55,199.47,0.71]
[1760320726076,0.69,199.55,199.48,8.61725782]
[1760320726583,0.69,199.55,199.49,5.01278259]
[1760320726783,0.69,199.55,199.49,13.63004041]
[1760320727080,0.69,199.55,199.49,5.01278259]
[1760320727379,0.09283986,199.56,199.5,8.61725782]
[1760320727885,0.09283986,199.56,199.51,8.61725782]
[1760320728085,0.09283986,199.56,199.52,0.50120288]
[1760320728264,0.09283986,199.56,199.53,0.71]
[1760320728459,0.09283986,199.56,199.54,8.61725782]
[1760320728660,0.09283986,199.56,199.54,5.01152651]
[1760320728860,0.09283986,199.56,199.54,13.62878433]
[1760320729081,0.09283986,199.56,199.54,14.33878433]
[1760320729675,0.09283986,199.56,199.55,8.61725782]
[1760320730178,0.09283986,199.56,199.55,25.21500839]
[1760320731164,0.10808182,199.58,199.55,37.74319681]
[1760320731370,0.10808182,199.58,199.57,10.87647521]
[1760320731682,0.10808182,199.58,199.57,19.99481034]
[1760320731883,0.10808182,199.58,199.57,20.70481034]
[1760320732187,0.10808182,199.58,199.57,25.7155835]
[1760320732479,0.10899937,199.59,199.58,10.87647521]
[1760320732683,0.10899937,199.59,199.58,9.32725782]
[1760320732980,0.09908892,199.63,199.62,31.67647521]
[1760320733179,0.09908892,199.63,199.62,40.79468483]
[1760320733357,0.09908892,199.63,199.62,41.50468483]
[1760320733562,0.09908892,199.63,199.62,32.88742701]
[1760320733770,0.09908892,199.63,199.62,41.00373303]
[1760320734184,0.09908892,199.63,199.62,25.21325111]
[1760320734386,0.09908892,199.63,199.57,12.52668606]
[1760320734576,0.09908892,199.63,199.58,15.8869973]
[1760320734781,0.09908892,199.63,199.58,24.50425512]
[1760320735172,0.79908892,199.63,199.58,24.50425512]
[1760320735380,0.79908892,199.63,199.6,8.61725782]
[1760320735592,0.79908892,199.63,199.6,5.78768195]
[1760320735887,0.09908892,199.63,199.58,10.79820404]
[1760320736063,5.78768195,199.61,199.53,5.01177767]
[1760320736264,0.09908892,199.63,199.55,5.78768195]
[1760320736490,0.09908892,199.63,199.6,5.78768195]
[1760320737689,0.09908892,199.63,199.57,10.87647521]
[1760320737880,0.09908892,199.63,199.6,5.78768195]
[1760320738485,0.09908892,199.63,199.6,10.79751009]
[1760320740291,0.09908892,199.63,199.6,5.66982814]
[1760320740682,0.09908892,199.63,199.62,5.78768195]
[1760320741393,0.09908892,199.63,199.6,18.19487824]
[1760320741394,0.10305517,199.63,199.6,18.19487824]
[1760320741592,0.10305517,199.63,199.6,5.00982814]
[1760320741901,0.80305517,199.63,199.6,5.00982814]
[1760320742095,0.80305517,199.63,199.58,5.01029468]
[1760320742096,0.7,199.62,199.58,5.01029468]
[1760320742300,0.10305517,199.63,199.57,5.78768195]
[1760320742301,0.7,199.61,199.57,5.78768195]
[1760320742598,0.10305517,199.63,199.58,0.66]
[1760320742784,0.10305517,199.63,199.59,5.78768195]
[1760320742990,0.10305517,199.63,199.6,5.78768195]
[1760320743194,0.80305517,199.63,199.57,17.53770606]
[1760320743398,0.7,199.62,199.57,5.01077316]
[1760320743575,0.7,199.61,199.57,5.01077316]
[1760320744279,0.10305517,199.63,199.61,10.87647521]
[1760320744484,0.10305517,199.63,199.62,17.16510896]
[1760320744682,0.10305517,199.63,199.62,22.83462704]
[1760320745788,0.09348044,199.64,199.63,10.87647521]
[1760320745988,0.09348044,199.64,199.63,11.53647521]
[1760320746688,0.09348044,199.64,199.63,22.3334243]
[1760320746888,1e-08,199.64,199.63,22.83435101]
[1760320747697,1e-08,199.65,199.63,22.83435101]
[1760320747896,1e-08,199.65,199.64,11.53647521]
[1760320748595,1e-08,199.65,199.64,16.66415716]
[1760320748792,1e-08,199.65,199.64,22.33317338]
[1760320749298,1e-08,199.65,199.64,5.00901622]
[1760320749896,1e-08,199.65,199.64,10.79669817]
[1760320750282,1e-08,199.65,199.64,5.00901622]
[1760320750485,1e-08,199.65,199.64,22.33317338]
[1760320751495,1e-08,199.65,199.64,21.67317338]
[1760320751693,1e-08,199.65,199.64,15.88549143]
[1760320751998,1e-08,199.65,199.64,21.67317338]
[1760320752708,5.10386227,199.7,199.69,79.30170278]
[1760320752906,23.41032238,199.7,199.6,5.01002004]
[1760320753103,5.78768195,199.67,199.6,5.01002004]
[1760320753310,5.78768195,199.65,199.6,5.01002004]
[1760320753807,5.78768195,199.63,199.59,5.01027105]
[1760320754192,5.78768195,199.61,199.53,5.01177767]
[1760320754501,5.00885799,199.65,199.53,5.01177767]
[1760320754502,5.78768195,199.59,199.53,23.32890381]
[1760320754682,6.48768195,199.6,199.53,23.32890381]
[1760320754885,6.48768195,199.6,199.54,5.78768195]
[1760320755310,0.7,199.6,199.55,5.78768195]
[1760320755513,0.7,199.6,199.53,17.54122186]
[1760320755813,5.78768195,199.6,199.54,5.78768195]
[1760320755984,20.8,199.63,199.55,6.44768195]
[1760320756307,20.8,199.63,199.57,5.78768195]
[1760320756508,26.58768195,199.63,199.57,5.78768195]
[1760320756713,5.78768195,199.63,199.57,5.78768195]
[1760320756889,5.78768195,199.6,199.53,28.41769707]
[1760320757081,5.78768195,199.61,199.55,5.78768195]
[1760320757404,5.78768195,199.59,199.53,5.01177767]
[1760320757608,0.7,199.58,199.53,10.79945962]
[1760320758600,5.78768195,199.58,199.53,5.01177767]
[1760320758800,5.78768195,199.56,199.5,5.01253132]
[1760320759004,20.8,199.6,199.54,5.78768195]
[1760320759193,5.78768195,199.59,199.53,5.78768195]
[1760320759503,5.78768195,199.59,199.51,0.66]
[1760320759504,5.78768195,199.58,199.51,6.44768195]
[1760320759683,6.48768195,199.59,199.52,5.78768195]
[1760320759888,6.48768195,199.59,199.53,5.01177767]
[1760320760287,0.7,199.59,199.53,10.79945962]
[1760320760505,6.48768195,199.59,199.53,5.01177767]
[1760320760707,5.78768195,199.58,199.53,5.01177767]
[1760320760908,0.7,199.57,199.53,5.01177767]
[1760320761384,0.10017039,199.54,199.53,5.01177767]
[1760320761587,0.10484204,199.57,199.54,10.87647521]
[1760320761788,0.1091203,199.59,199.56,16.66415716]
[1760320761992,0.1091203,199.59,199.58,21.67467925]
[1760320762390,0.1091203,199.59,199.58,22.33467925]
[1760320763009,0.1091203,199.59,199.58,16.5469973]
[1760320763216,0.1091203,199.59,199.58,22.33467925]
[1760320763403,0.1091203,199.59,199.58,16.5469973]
[1760320763610,0.1091203,199.59,199.58,22.33467925]
[1760320764718,0.1091203,199.59,199.58,11.45820404]
[1760320765015,1e-08,199.59,199.58,22.33467925]
[1760320765218,1e-08,199.61,199.59,10.87647521]
[1760320765418,1e-08,199.61,199.6,5.78768195]
[1760320765597,1e-08,199.61,199.6,6.45768195]
[1760320766137,0.67,199.72,199.61,10.87647521]
[1760320766301,0.67,199.72,199.62,16.66415716]
[1760320766501,0.67,199.72,199.62,17.33415716]
[1760320766821,0.67,199.71,199.62,22.34367524]
[1760320767313,0.67,199.71,199.63,10.87647521]
[1760320767617,2.61704722,199.73,199.68,5.78768195]
[1760320767812,0.67,199.72,199.63,5.78768195]
[1760320767999,6.45768195,199.71,199.62,23.32099524]
[1760320768317,28.42388491,199.73,199.6,10.79754459]
[1760320768318,5.78768195,199.69,199.6,10.79754459]
[1760320768504,5.78768195,199.67,199.6,10.79754459]
[1760320768726,5.78768195,199.65,199.6,5.00986264]
[1760320768922,0.67,199.64,199.6,5.00986264]
[1760320769305,6.45768195,199.63,199.57,5.01077316]
[1760320769513,5.78768195,199.62,199.57,5.01077316]
[1760320769718,0.67,199.67,199.57,23.32538801]
[1760320769922,6.45768195,199.66,199.6,5.78768195]
[1760320770128,0.67,199.66,199.6,5.78768195]
[1760320770923,6.45768195,199.66,199.61,5.00976904]
[1760320771237,6.45768195,199.66,199.61,17.53419166]
[1760320771403,6.45768195,199.65,199.61,5.00976904]
[1760320771721,5.78768195,199.62,199.59,5.01019315]
[1760320771924,6.45768195,199.62,199.59,5.01019315]
[1760320772130,5.78768195,199.63,199.59,5.01019315]
[1760320772304,6.45768195,199.63,199.59,5.01019315]
[1760320773017,6.45768195,199.63,199.57,17.5375359]
[1760320773400,0.67,199.67,199.58,5.78768195]
[1760320773605,0.67,199.67,199.6,5.78768195]
[1760320773829,5.78768195,199.66,199.6,5.78768195]
[1760320774010,5.78768195,199.63,199.57,17.5375359]
[1760320774217,5.78768195,199.63,199.57,23.32521785]
[1760320774417,5.78768195,199.64,199.58,5.78768195]
[1760320774617,5.78768195,199.65,199.59,5.78768195]
[1760320774821,5.78768195,199.63,199.57,17.5375359]
[1760320775324,5.78768195,199.63,199.57,23.32521785]
[1760320775920,6.45768195,199.64,199.58,5.78768195]
[1760320776135,5.78768195,199.64,199.59,5.01027105]
[1760320776319,5.78768195,199.64,199.59,5.68027105]
[1760320776835,6.45768195,199.64,199.59,5.01027105]
[1760320777123,5.78768195,199.66,199.6,6.45768195]
[1760320777630,5.78768195,199.66,199.6,5.78768195]
[1760320777834,5.78768195,199.65,199.59,23.32363063]
[1760320778519,5.78768195,199.65,199.59,17.53594868]
[1760320779125,5.78768195,199.62,199.59,5.01027105]
[1760320779425,5.78768195,199.62,199.56,12.52744303]
[1760320779426,0.67,199.62,199.57,5.01077316]
[1760320779627,2.61704722,199.73,199.58,0.67]
[1760320779821,5.78768195,199.68,199.61,5.78768195]
[1760320780010,5.78768195,199.69,199.61,0.67]
[1760320780323,5.78768195,199.68,199.61,6.45768195]
[1760320780522,5.78768195,199.69,199.62,5.78768195]
[1760320780830,5.78768195,199.69,199.63,5.00926714]
[1760320781241,6.45768195,199.69,199.63,5.00926714]
[1760320781427,0.10718542,199.64,199.63,5.00926714]
[1760320782134,0.10718542,199.64,199.63,10.79694909]
[1760320783035,0.10718542,199.64,199.62,23.32068898]
[1760320783234,0.10718542,199.64,199.63,5.78768195]
[1760320783425,0.10718542,199.64,199.63,0.67]
[1760320783614,0.10718542,199.64,199.62,17.53300703]
[1760320783920,0.10718542,199.64,199.62,18.20300703]
[1760320784123,0.10718542,199.64,199.63,0.69]
[1760320784316,0.10718542,199.64,199.63,6.47768195]
[1760320784719,0.10718542,199.64,199.63,0.69]
[1760320784919,0.10718542,199.64,199.63,11.48694909]
[1760320785214,0.10718542,199.64,199.63,5.00926714]
[1760320786021,0.10248087,199.65,199.63,5.69926714]
[1760320786220,0.10248087,199.65,199.64,17.35415716]
[1760320787226,0.09694352,199.66,199.64,22.36317338]
[1760320787438,0.09694352,199.66,199.65,17.85503369]
[1760320788035,0.09888635,199.67,199.65,17.85503369]
[1760320788336,0.09888635,199.67,199.66,6.47768195]
[1760320789129,0.09888635,199.67,199.66,11.48619642]
[1760320789634,0.09888635,199.67,199.66,22.36267163]
[1760320790257,0.09888635,199.67,199.66,11.56647521]
[1760320790419,0.09888635,199.67,199.66,22.36267163]
[1760320792033,0.10466073,199.7,199.66,22.36267163]
[1760320792034,1e-08,199.7,199.67,10.87647521]
[1760320792241,5.78768195,199.92,199.7,10.87647521]
[1760320792425,0.66,199.82,199.7,10.87647521]
[1760320792618,0.66,199.82,199.77,5.78768195]
[1760320792823,2.61549134,199.84,199.78,5.78768195]
[1760320793240,2.61549134,199.84,199.78,11.483188]
[1760320793445,5.78768195,199.88,199.82,10.87647521]
[1760320793753,5.78768195,199.85,199.79,17.35415716]
[1760320794041,2.61474701,199.9,199.8,0.69]
[1760320794346,0.66,199.86,199.79,10.87647521]
[1760320794549,5.78768195,199.85,199.79,17.35415716]
[1760320794847,6.44768195,199.82,199.76,21.66994869]
[1760320795140,6.44768195,199.82,199.76,10.79347348]
[1760320795720,0.66,199.82,199.76,10.79347348]
[1760320795937,6.44768195,199.82,199.76,10.79347348]
[1760320796133,6.44768195,199.82,199.73,10.87647521]
[1760320796134,5.78768195,199.8,199.73,6.50768195]
[1760320796326,5.78768195,199.81,199.73,0.72]
[1760320796516,0.66,199.82,199.73,0.72]
[1760320796728,0.66,199.82,199.76,5.78768195]
[1760320797245,6.44768195,199.82,199.77,5.00575662]
[1760320797441,0.1,199.83,199.75,10.87647521]
[1760320797442,0.66,199.81,199.75,10.87647521]
[1760320797624,0.66,199.81,199.75,19.48452492]
[1760320797819,0.1,199.83,199.77,10.87647521]
[1760320798047,0.1,199.83,199.78,8.60804971]
[1760320798342,8.60804971,199.82,199.76,9.32804971]
[1760320798525,8.60804971,199.82,199.76,0.72]
[1760320798727,8.60804971,199.82,199.76,9.32804971]
[1760320799034,9.36804971,199.83,199.76,0.72]
[1760320799346,8.60804971,199.82,199.76,0.72]
[1760320799545,0.76,199.83,199.76,9.32804971]
[1760320799739,9.36804971,199.83,199.77,13.61380633]
[1760320800225,0.1,199.83,199.78,8.60804971]
[1760320800423,0.1,199.83,199.79,9.32804971]
[1760320800644,0.1,199.83,199.8,8.60804971]
[1760320801031,0.1,199.83,199.79,8.60804971]
[1760320801321,0.1,199.83,199.74,25.03219796]
[1760320801322,0.1060518,199.81,199.8,14.33305471]
[1760320801527,0.10459033,199.82,199.81,10.87647521]
[1760320801727,0.10459033,199.82,199.81,20.20452492]
[1760320802141,0.10459033,199.82,199.8,17.51751751]
[1760320802341,0.10459033,199.82,199.8,5.005005]
[1760320802525,0.66,199.81,199.75,9.32804971]
[1760320802730,8.60804971,199.8,199.74,5.00650846]
[1760320802934,8.60804971,199.77,199.73,5.00675102]
[1760320803135,20.8,199.8,199.71,5.00717178]
[1760320803358,0.66,199.79,199.71,5.00717178]
[1760320803559,8.60804971,199.75,199.67,0.72]
[1760320803722,5.005005,199.8,199.69,8.60804971]
[1760320803922,8.60804971,199.76,199.7,8.60804971]
[1760320804147,8.60804971,199.74,199.65,17.53067867]
[1760320804359,8.60804971,199.74,199.67,8.60804971]
[1760320804527,0.66,199.75,199.66,0.72]
[1760320804852,0.66,199.78,199.7,8.60804971]
[1760320805153,29.40804971,199.8,199.73,8.60804971]
[1760320805337,9.26804971,199.81,199.74,8.60804971]
[1760320805544,9.26804971,199.81,199.71,0.72]
[1760320805744,8.60804971,199.8,199.73,8.60804971]
[1760320805943,8.60804971,199.79,199.72,8.60804971]
[1760320806140,8.60804971,199.75,199.68,8.60804971]
[1760320806450,8.60804971,199.75,199.67,18.24892271]
[1760320806451,8.60804971,199.74,199.67,26.85697242]
[1760320806649,0.66,199.75,199.67,18.24892271]
[1760320806831,9.26804971,199.75,199.68,8.60804971]
[1760320807028,0.66,199.74,199.65,5.00876533]
[1760320807240,0.66,199.74,199.66,8.60804971]
[1760320807241,21.46,199.74,199.66,8.60804971]
[1760320807447,8.60804971,199.71,199.65,26.13872838]
[1760320807958,0.66,199.72,199.65,17.53067867]
[1760320808159,20.8,199.73,199.66,8.60804971]
[1760320808332,8.60804971,199.72,199.65,26.13872838]
[1760320808533,8.60804971,199.73,199.66,8.60804971]
[1760320808835,30.06804971,199.74,199.67,13.61620904]
[1760320809040,20.8,199.72,199.67,5.00815933]
[1760320809237,8.60804971,199.7,199.67,5.00815933]
[1760320809557,8.60804971,199.68,199.59,8.60804971]
[1760320809760,8.60804971,199.62,199.47,17.54649821]
[1760320810064,8.60804971,199.63,199.56,8.60804971]
[1760320810261,8.60804971,199.66,199.6,8.60804971]
[1760320810558,15.0689404,199.69,199.65,8.60804971]
[1760320810730,15.0689404,199.69,199.63,13.24284528]
[1760320810926,15.0689404,199.69,199.64,5.0087686]
[1760320810927,9.26804971,199.69,199.64,5.0087686]
[1760320811131,8.60804971,199.7,199.64,26.85935888]
[1760320811332,8.60804971,199.71,199.65,8.60804971]
[1760320811630,8.60804971,199.67,199.62,5.00945134]
[1760320811835,9.26804971,199.67,199.62,5.00945134]
[1760320812132,0.66,199.69,199.63,8.60804971]
[1760320812331,30.06804971,199.69,199.63,8.60804971]
[1760320812554,30.06804971,199.69,199.62,13.61750105]
[1760320812735,8.60804971,199.66,199.59,12.52552731]
[1760320812936,0.66,199.66,199.59,12.52552731]
[1760320813141,0.66,199.66,199.6,8.60804971]
[1760320813448,8.60804971,199.69,199.62,8.60804971]
[1760320813847,8.60804971,199.69,199.6,0.72]
[1760320813848,8.60804971,199.66,199.59,21.13357702]
[1760320814051,0.66,199.66,199.59,21.13357702]
[1760320814235,20.8,199.7,199.6,11.59647521]
[1760320814429,30.06804971,199.71,199.63,8.60804971]
[1760320814636,21.46,199.71,199.63,8.60804971]
[1760320814837,9.26804971,199.75,199.68,8.60804971]
[1760320815054,8.60804971,199.78,199.71,8.60804971]
[1760320815255,0.76459033,199.82,199.74,8.60804971]
[1760320815454,0.76459033,199.82,199.75,8.60804971]
[1760320815631,0.76459033,199.82,199.76,8.60804971]
[1760320815830,8.60804971,199.78,199.72,8.60804971]
[1760320816248,0.66,199.79,199.72,0.72]
[1760320816461,0.66,199.79,199.73,8.60804971]
[1760320816836,0.66,199.79,199.74,5.00650846]
[1760320817232,8.60804971,199.81,199.74,26.85082932]
[1760320817464,0.10459033,199.82,199.76,8.60804971]
[1760320817666,0.10459033,199.82,199.77,8.60804971]
[1760320818033,0.10459033,199.82,199.78,19.48452492]
[1760320818234,0.10459033,199.82,199.79,8.60804971]
[1760320818563,0.10459033,199.82,199.8,8.60804971]
[1760320818868,0.10459033,199.82,199.81,8.60804971]
[1760320819062,0.10459033,199.82,199.81,5.00475451]
[1760320819369,0.10459033,199.82,199.81,14.33280422]
[1760320819545,0.10459033,199.82,199.81,5.72475451]
[1760320819733,0.10459033,199.82,199.81,5.00475451]
[1760320820635,0.10459033,199.82,199.79,12.51292653]
[1760320820636,9.37264004,199.82,199.79,5.00525551]
[1760320820944,0.66,199.81,199.79,5.00525551]
[1760320821166,8.71264004,199.82,199.77,5.00575662]
[1760320821367,0.10817792,199.8,199.77,5.00575662]
[1760320821537,0.10817792,199.8,199.77,17.52014817]
[1760320821738,0.10817792,199.8,199.79,8.60804971]
[1760320822262,0.10817792,199.8,199.79,9.32804971]
[1760320823341,0.1093278,199.82,199.8,10.87647521]
[1760320823562,1e-08,199.83,199.82,10.87647521]
[1760320823742,1e-08,199.83,199.81,0.72]
[1760320823953,1e-08,199.83,199.82,9.32804971]
[1760320824654,1e-08,199.84,199.82,9.82850011]
[1760320824860,1e-08,199.84,199.83,20.15452492]
[1760320825065,0.10299229,199.87,199.83,20.15452492]
[1760320825243,9.37804971,199.99,199.89,10.87647521]
[1760320825551,2.61357466,199.98,199.93,8.60804971]
[1760320825753,9.27804971,199.97,199.89,10.87647521]
[1760320825952,0.67,199.97,199.89,8.60804971]
[1760320826153,0.67,199.97,199.89,0.67]
[1760320826369,0.67,199.97,199.91,8.60804971]
[1760320826669,2.61357466,199.98,199.88,53.40199051]
[1760320826966,0.1,199.99,199.95,8.60804971]
[1760320827375,0.67,199.98,199.96,5.0010002]
[1760320827574,0.1,199.99,199.96,5.0010002]
[1760320827967,0.77,199.99,199.96,5.0010002]
[1760320828274,9.37804971,199.99,199.96,5.0010002]
[1760320828448,9.37804971,199.99,199.89,11.54647521]
[1760320828449,8.60804971,199.97,199.89,11.54647521]
[1760320828646,0.67,199.98,199.89,11.54647521]
[1760320828647,20.8,199.96,199.9,5.00250125]
[1760320828851,29.40804971,199.96,199.9,17.50875437]